bitfinex-derivatives/quotes_SOLF0:USTF0_20240923
["timestamp","ask_amount","ask_price","bid_price","bid_amount"]
[1727058018159,3.4184,146.26,146.21,11.49]
[1727058018460,12.896,146.3,146.19,11.49]
[1727058019458,12.896,146.3,146.21,11.49]
[1727058019660,1.406,146.3,146.23,11.49]
[1727058019965,3.4183,146.27,146.24,3.4188]
[1727058020349,1.406,146.3,146.24,3.4188]
[1727058020555,3.4181,146.28,146.24,3.4188]
[1727058020750,1.406,146.3,146.24,3.4188]
[1727058021357,1.406,146.3,146.25,3.4185]
[1727058021661,1.406,146.3,146.25,11.49]
[1727058021857,1.3942,146.32,146.27,11.49]
[1727058022063,11.49,146.37,146.29,3.4176]
[1727058022258,4.1387,146.38,146.29,3.4176]
[1727058022460,11.49,146.36,146.29,3.4176]
[1727058023559,3.417,146.32,146.29,3.4176]
[1727058024164,11.49,146.36,146.29,3.4176]
[1727058024165,3.4167,146.34,146.29,11.49]
[1727058024367,19.02120564,146.38,146.29,11.49]
[1727058024566,7.53120564,146.38,146.31,11.49]
[1727058025757,3.4163,146.35,146.32,3.4169]
[1727058028168,19.02120564,146.38,146.29,11.49]
[1727058028566,11.49,146.36,146.27,11.49]
[1727058029661,11.49,146.36,146.29,3.4175]
[1727058030463,3.4171,146.32,146.29,3.4175]
[1727058030664,11.49,146.36,146.28,3.4178]
[1727058031060,3.4172,146.31,146.28,3.4178]
[1727058031273,3.4172,146.31,146.27,14.908]
[1727058031470,3.4176,146.3,146.25,11.49]
[1727058031768,11.49,146.34,146.26,3.4182]
[1727058032566,3.4174,146.31,146.27,3.418]
[1727058032766,11.49,146.34,146.27,3.418]
[1727058032964,11.49,146.31,146.15,6.8417]
[1727058033167,11.49,146.31,146.24,3.4188]
[1727058033168,3.418,146.28,146.24,3.4188]
[1727058033773,3.4182,146.27,146.23,3.419]
[1727058033975,7.37800601,146.3,146.21,11.49]
[1727058034678,3.4183,146.27,146.23,3.419]
[1727058034868,7.37800601,146.3,146.21,11.49]
[1727058035270,11.49,146.29,146.19,11.49]
[1727058036176,3.4183,146.26,146.21,3.4193]
[1727058036573,3.4183,146.26,146.22,3.4193]
[1727058037476,3.4183,146.26,146.21,11.49]
[1727058037477,3.4187,146.25,146.21,14.9095]
[1727058037971,3.4187,146.25,146.21,3.4195]
[1727058038276,7.37800601,146.3,146.22,11.49]
[1727058038572,4.04,146.3,146.25,11.49]
[1727058038774,4.04,146.3,146.26,3.4182]
[1727058039572,7.4575,146.3,146.26,3.4182]
[1727058041378,11.49,146.37,146.28,11.49]
[1727058041576,15.7083,146.37,146.29,11.49]
[1727058041767,4.2183,146.37,146.29,11.49]
[1727058041971,3.4164,146.35,146.31,3.4171]
[1727058042170,4.2183,146.37,146.31,3.4171]
[1727058042372,4.2183,146.37,146.29,11.49]
[1727058042570,3.4163,146.35,146.31,3.417]
[1727058042972,15.7083,146.37,146.27,11.49]
[1727058043175,11.49,146.35,146.25,11.49]
[1727058043682,3.4171,146.32,146.27,3.4179]
[1727058044084,3.4171,146.32,146.25,11.49]
[1727058044085,11.49,146.35,146.25,11.49]
[1727058044281,3.4176,146.3,146.25,11.49]
[1727058044581,2.8404,146.31,146.25,11.49]
[1727058044782,6.2577,146.31,146.26,3.4182]
[1727058045185,2.8404,146.31,146.26,3.4182]
[1727058046481,6.2577,146.31,146.26,3.4182]
[1727058047583,3.4175,146.3,146.26,3.4182]
[1727058048482,3.4175,146.3,146.25,3.4185]
[1727058048682,3.4177,146.29,146.25,3.4185]
[1727058049381,3.4175,146.3,146.26,3.4183]
[1727058051388,6.2577,146.31,146.27,3.4181]
[1727058051785,2.8404,146.31,146.25,11.49]
[1727058051997,3.4175,146.3,146.26,3.4183]
[1727058052293,2.8404,146.31,146.25,11.49]
[1727058052791,2.8404,146.31,146.28,3.4178]
[1727058053686,2.8404,146.31,146.27,3.4181]
[1727058054293,2.8404,146.31,146.26,3.4183]
[1727058054590,2.8404,146.31,146.24,11.49]
[1727058054791,3.4177,146.29,146.25,3.4185]
[1727058055592,3.4177,146.29,146.26,3.4183]
[1727058055795,3.42681186,146.29,146.17,0.6285]
[1727058055990,11.49,146.3,146.17,0.6285]
[1727058055991,11.49,146.3,146.19,11.49]
[1727058056187,4.1478,146.31,146.19,11.49]
[1727058056399,11.49,146.29,146.19,11.49]
[1727058056589,3.42693938,146.28,146.19,11.49]
[1727058056992,11.49,146.29,146.19,11.49]
[1727058057192,14.9620892,146.29,146.19,11.49]
[1727058057386,3.4194,146.22,146.18,3.4201]
[1727058057591,11.49,146.25,146.16,11.49]
[1727058057793,11.49,146.25,146.17,11.49]
[1727058057995,3.4189,146.24,146.2,3.4196]
[1727058060400,3.4189,146.24,146.21,3.4195]
[1727058060999,4.7609,146.25,146.22,3.4192]
[1727058061198,4.7609,146.25,146.2,11.49]
[1727058061199,1.3422,146.25,146.2,11.49]
[1727058061397,3.35295603,146.29,146.21,11.49]
[1727058061692,3.418,146.28,146.24,3.4187]
[1727058061890,3.418,146.28,146.21,11.49]
[1727058062089,3.4182,146.27,146.23,3.4188]
[1727058062292,11.49,146.28,146.18,11.49]
[1727058062801,3.4186,146.25,146.21,3.4194]
[1727058063104,3.33869202,146.27,146.17,11.49]
[1727058063298,3.4193,146.22,146.19,3.4199]
[1727058063800,2.6752,146.25,146.19,3.4199]
[1727058064102,3.4191,146.23,146.19,3.4199]
[1727058064805,3.4191,146.23,146.17,11.49]
[1727058064996,3.4193,146.22,146.17,11.49]
[1727058065302,3.4193,146.22,146.18,3.4201]
[1727058066198,3.4196,146.21,146.17,3.4204]
[1727058066592,3.4078015,146.22,146.17,3.4204]
[1727058066794,12.8553,146.24,146.17,3.4204]
[1727058067192,3.4197,146.21,146.17,3.4204]
[1727058068095,3.4198,146.2,146.17,3.4204]
[1727058070498,3.4201,146.19,146.14,11.49]
[1727058070804,14.87136055,146.2,146.12,11.49]
[1727058071006,11.49,146.2,146.12,11.49]
[1727058071503,3.4204,146.18,146.14,3.421]
[1727058071704,3.4204,146.18,146.12,11.49]
[1727058072101,3.42,146.19,146.12,11.49]
[1727058073004,1.3653,146.24,146.16,11.49]
[1727058073505,4.7843,146.24,146.19,3.4198]
[1727058073801,1.3653,146.24,146.18,11.49]
[1727058074199,4.7842,146.24,146.2,3.4196]
[1727058074395,1.3261,146.25,146.18,11.49]
[1727058074701,14.3738,146.29,146.2,11.49]
[1727058074902,15.8102,146.29,146.18,11.49]
[1727058075407,19.22028621,146.29,146.21,3.4193]
[1727058076102,3.4188,146.25,146.21,3.4193]
[1727058076305,11.49,146.27,146.23,3.4189]
[1727058076603,3.4186,146.25,146.18,11.49]
[1727058077005,3.4186,146.25,146.21,3.4194]
[1727058077609,11.49,146.25,146.16,11.49]
[1727058078897,11.49,146.25,146.1,11.49]
[1727058078898,11.49,146.28,146.18,11.49]
[1727058079610,11.49,146.27,146.18,11.49]
[1727058079817,3.419,146.24,146.18,11.49]
[1727058080612,11.49,146.25,146.16,11.49]
[1727058080811,11.49,146.23,146.14,11.49]
[1727058081115,2.6607,146.22,146.14,11.49]
[1727058081303,3.4197,146.21,146.18,3.4202]
[1727058081907,3.41921576,146.21,146.16,3.4205]
[1727058082216,3.41921576,146.21,146.13,11.49]
[1727058082414,3.9921,146.22,146.13,11.49]
[1727058082612,3.4199,146.2,146.17,3.4204]
[1727058082915,6.87846429,146.2,146.13,11.49]
[1727058083117,3.4201,146.19,146.16,3.4205]
[1727058084814,14.86062889,146.2,146.11,11.49]
[1727058085018,11.49,146.2,146.11,11.49]
[1727058085210,3.4206,146.17,146.13,3.4212]
[1727058086217,3.4206,146.17,146.14,3.4211]
[1727058087018,3.4213,146.14,146.07,11.49]
[1727058087215,11.49,146.15,146.06,11.49]
[1727058087417,4.1781,146.16,146.06,11.49]
[1727058087610,11.49,146.15,146.09,3.4222]
[1727058087807,14.89132794,146.15,146.09,3.4222]
[1727058088215,3.4216,146.13,146.09,3.4222]
[1727058088524,14.89132794,146.15,146.06,11.49]
[1727058089224,11.49,146.1,145.97,6.8502]
[1727058089423,14.9118,146.12,146.07,3.4226]
[1727058089624,11.49,146.12,146.04,11.49]
[1727058090020,3.4219,146.11,146.07,3.4226]
[1727058090522,11.49,146.12,146.02,11.49]
[1727058091318,11.49,146.12,146.03,11.49]
[1727058092520,11.49,146.14,146.05,11.49]
[1727058092720,15.6681,146.16,146.07,11.49]
[1727058093022,7.6139295,146.16,146.09,11.49]
[1727058093418,7.5989,146.16,146.13,3.4214]
[1727058093624,131.72106768,146.27,146.11,11.49]
[1727058093823,1.3672,146.2,146.11,11.49]
[1727058094017,1.3555,146.19,146.11,11.49]
[1727058094425,12.8455,146.19,146.13,3.4212]
[1727058094728,12.8455,146.19,146.09,11.49]
[1727058095128,3.4209,146.16,146.12,3.4215]
[1727058095625,12.8455,146.19,146.11,11.49]
[1727058095928,1.3555,146.19,146.15,3.4208]
[1727058096724,4.7755,146.19,146.13,11.49]
[1727058097121,1.3555,146.19,146.16,3.4206]
[1727058097623,4.7755,146.19,146.15,3.4208]
[1727058098028,1.3555,146.19,146.11,11.49]
[1727058098222,3.4207,146.16,146.13,3.4212]
[1727058098525,1.3555,146.19,146.13,3.4212]
[1727058099135,3.4206,146.17,146.13,3.4212]
[1727058099632,12.8455,146.19,146.11,11.49]
[1727058099835,12.8455,146.19,146.09,11.49]
[1727058100230,3.4207,146.16,146.12,3.4216]
[1727058100424,3.4207,146.16,146.11,11.49]
[1727058100826,3.4205,146.17,146.11,11.49]
[1727058101538,3.4203,146.18,146.11,11.49]
[1727058101932,3.4203,146.18,146.14,3.421]
[1727058103039,3.4205,146.17,146.14,3.421]
[1727058104236,3.4207,146.16,146.13,3.4213]
[1727058105429,3.4207,146.16,146.12,3.4215]
[1727058106432,12.8455,146.19,146.11,3.4218]
[1727058106433,3.421,146.15,146.11,3.4218]
[1727058107437,3.421,146.15,146.12,3.4216]
[1727058109240,12.8455,146.19,146.08,11.49]
[1727058109438,11.49,146.17,146.07,11.49]
[1727058109848,3.4216,146.13,146.09,3.4222]
[1727058113250,11.49,146.15,146.08,3.4224]
[1727058113453,12.8455,146.19,146.09,11.49]
[1727058113653,1.4238,146.18,146.09,11.49]
[1727058113952,1.4238,146.18,146.1,11.49]
[1727058114751,3.4206,146.17,146.13,3.4212]
[1727058114948,1.4238,146.18,146.1,11.49]
[1727058115140,1.4238,146.18,146.12,11.49]
[1727058115749,4.8442,146.18,146.14,3.421]
[1727058116247,4.8442,146.18,146.12,11.49]
[1727058116640,4.8442,146.18,146.14,3.421]
[1727058117153,82.14,146.26,146.15,11.49]
[1727058117343,14.2156,146.25,146.17,11.49]
[1727058117543,15.5946,146.25,146.17,11.49]
[1727058118046,3.4194,146.22,146.19,3.4199]
[1727058118254,4.1046,146.25,146.18,11.49]
[1727058119450,4.1046,146.25,146.21,3.4193]
[1727058120649,4.1046,146.25,146.18,11.49]
[1727058120851,4.1046,146.25,146.16,11.49]
[1727058121248,3.4192,146.23,146.19,3.4198]
[1727058121951,3.4192,146.23,146.2,3.4197]
[1727058122846,3.4193,146.22,146.16,11.49]
[1727058123048,4.1046,146.25,146.16,11.49]
[1727058123239,4.1046,146.25,146.12,3.46311335]
[1727058123444,4.1046,146.25,146.18,3.4201]
[1727058124049,4.1046,146.25,146.15,11.49]
[1727058124050,11.49,146.24,146.17,3.4204]
[1727058124647,3.4198,146.2,146.17,3.4204]
[1727058125252,3.42,146.19,146.16,3.4206]
[1727058125449,11.49,146.24,146.13,11.49]
[1727058126058,11.49,146.22,146.13,11.49]
[1727058126444,3.3895611,146.21,146.13,11.49]
[1727058126748,4.1046,146.25,146.15,11.49]
[1727058126749,15.5946,146.25,146.15,11.49]
[1727058126955,3.4194,146.22,146.19,3.4198]
[1727058127151,4.1046,146.25,146.16,11.49]
[1727058127450,3.4191,146.23,146.2,3.4196]
[1727058127645,3.4191,146.23,146.16,11.49]
[1727058127646,4.1046,146.25,146.16,11.49]
[1727058129051,3.4197,146.21,146.18,3.42]
[1727058129247,11.49,146.23,146.14,11.49]
[1727058129650,3.4197,146.21,146.17,3.4203]
[1727058130745,3.4197,146.21,146.18,3.4201]
[1727058130948,3.4197,146.21,146.14,11.49]
[1727058131355,3.4197,146.21,146.17,3.4203]
[1727058131550,3.4197,146.21,146.14,11.49]
[1727058132153,3.4197,146.21,146.18,3.4201]
[1727058132452,3.4197,146.21,146.14,11.49]
[1727058132453,15.5946,146.25,146.16,11.49]
[1727058132752,15.5946,146.25,146.19,3.4198]
[1727058132952,3.4194,146.22,146.19,3.4198]
[1727058134157,3.4195,146.21,146.18,3.4201]
[1727058134558,15.5946,146.25,146.16,11.49]
[1727058134959,3.4194,146.22,146.16,11.49]
[1727058135261,11.49,146.24,146.14,11.49]
[1727058135454,3.4197,146.21,146.17,3.4203]
[1727058136064,3.4197,146.21,146.18,3.4202]
[1727058136462,3.4197,146.21,146.17,3.4204]
[1727058137256,3.4198,146.2,146.14,11.49]
[1727058137566,11.49,146.21,146.16,3.4206]
[1727058137858,3.4201,146.19,146.15,3.4208]
[1727058138065,3.34131654,146.19,146.11,12.6399]
[1727058138266,11.49,146.2,146.11,11.49]
[1727058138457,1.3584,146.18,146.11,11.49]
[1727058138760,1.3584,146.18,146.09,11.49]
[1727058139262,3.4207,146.16,146.12,3.4214]
[1727058141160,3.4205,146.17,146.13,3.4213]
[1727058141664,1.3584,146.18,146.11,11.49]
[1727058141866,2.7087,146.19,146.07,82.1]
[1727058141867,1.3275,146.19,146.15,11.49]
[1727058142062,11.49,146.24,146.15,11.49]
[1727058142259,1.3083,146.23,146.16,3.4206]
[1727058142861,11.49,146.22,146.17,3.4204]
[1727058143064,3.35296013,146.21,146.17,3.4204]
[1727058143657,11.49,146.22,146.17,3.4204]
[1727058143658,6.91280917,146.2,146.17,3.4204]
[1727058143862,3.4199,146.2,146.17,3.4204]
[1727058144864,3.4201,146.19,146.13,11.49]
[1727058145371,3.4201,146.19,146.16,3.4205]
[1727058145763,11.49,146.22,146.13,11.49]
[1727058145962,3.4198,146.2,146.13,11.49]
[1727058146668,3.4198,146.2,146.16,3.4205]
[1727058146869,3.4198,146.2,146.13,11.49]
[1727058148172,3.42,146.19,146.16,3.4205]
[1727058149175,14.90592009,146.21,146.13,11.49]
[1727058149472,11.49,146.19,146.1,11.49]
[1727058149774,11.49,146.19,146.13,3.4212]
[1727058149775,3.4208,146.16,146.13,3.4212]
[1727058150472,1.3495,146.18,146.1,11.49]
[1727058150976,3.4208,146.16,146.13,3.4214]
[1727058151171,11.49,146.17,146.07,11.49]
[1727058151367,14.1875,146.17,146.07,11.49]
[1727058151676,3.4213,146.14,146.11,3.4218]
[1727058151871,14.1875,146.17,146.07,11.49]
[1727058152273,11.49,146.15,146.05,11.49]
[1727058152982,11.49,146.15,146.09,3.4223]
[1727058153771,3.4217,146.12,146.09,3.4223]
[1727058155473,11.49,146.15,146.07,11.49]
[1727058156182,14.1875,146.17,146.09,11.49]
[1727058156376,2.6975,146.17,146.09,11.49]
[1727058156884,3.4208,146.16,146.09,11.49]
[1727058157375,2.6975,146.17,146.09,11.49]
[1727058157569,3.4211,146.15,146.12,3.4216]
[1727058157767,1.3572,146.17,146.11,11.49]
[1727058157969,1.3495,146.18,146.16,3.4206]
[1727058158172,14.8459206,146.21,146.16,3.4206]
[1727058158369,11.49,146.21,146.16,3.4206]
[1727058158571,3.4201,146.19,146.16,3.4206]
[1727058159069,11.49,146.19,146.14,3.421]
[1727058160074,3.4206,146.17,146.11,11.49]
[1727058160672,3.4206,146.17,146.13,3.4212]
[1727058161080,11.49,146.19,146.11,11.49]
[1727058161279,3.4202,146.18,146.15,3.4208]
[1727058161575,3.4202,146.18,146.11,11.49]
[1727058161775,14.86716156,146.21,146.05,7.368]
[1727058161979,11.49,146.17,146.08,11.49]
[1727058162280,14.90491039,146.17,146.08,11.49]
[1727058162481,3.4213,146.14,146.1,3.4219]
[1727058162976,2.8005,146.16,146.1,3.4219]
[1727058163179,3.4213,146.14,146.1,3.4219]
[1727058164477,3.421,146.15,146.08,11.49]
[1727058164979,3.421,146.15,146.12,3.4216]
[1727058165178,6.2212,146.16,146.08,11.49]
[1727058165372,6.2212,146.16,146.05,0.5217]
[1727058165373,6.2212,146.16,146.1,11.49]
[1727058165573,2.8005,146.16,146.12,3.4215]
[1727058165987,3.4209,146.15,146.12,3.4215]
[1727058166483,3.4209,146.15,146.13,3.4214]
[1727058166693,6.2213,146.16,146.1,11.49]
[1727058166882,11.49,146.2,146.1,11.49]
[1727058167184,3.4205,146.17,146.1,11.49]
[1727058167381,3.45611392,146.19,146.1,11.49]
[1727058167783,2.7918,146.21,146.14,11.49]
[1727058168086,2.7918,146.21,146.18,3.42]
[1727058169172,6.2115,146.21,146.18,3.42]
[1727058169578,6.2115,146.21,146.17,3.4204]
[1727058169874,6.1841101,146.21,146.11,12.6439]
[1727058170578,11.49,146.2,146.11,1.1539]
[1727058170777,11.49,146.2,146.14,3.4209]
[1727058170981,3.4204,146.18,146.11,1.1539]
[1727058171286,3.4204,146.18,146.14,3.421]
[1727058171582,3.4204,146.18,146.11,1.1539]
[1727058173283,11.49,146.2,146.11,1.1539]
[1727058173783,3.4206,146.17,146.13,3.4212]
[1727058174385,3.4206,146.17,146.09,11.49]
[1727058174980,3.4206,146.17,146.13,3.4212]
[1727058175983,3.4206,146.17,146.14,3.421]
[1727058176886,3.4203,146.18,146.14,3.421]
[1727058177090,3.4203,146.18,146.15,3.4209]
[1727058177293,3.4199,146.2,146.12,11.49]
[1727058177790,3.4202,146.19,146.16,3.4206]
[1727058179896,3.4203,146.18,146.15,3.4209]
[1727058180095,11.49,146.19,146.12,11.49]
[1727058180289,3.4203,146.18,146.15,3.4209]
[1727058180685,11.49,146.19,146.09,11.49]
[1727058180892,3.4206,146.17,146.09,11.49]
[1727058181698,11.49,146.17,146.07,11.49]
[1727058181898,11.49,146.15,146.05,12.6437]
[1727058182097,3.4216,146.13,146.09,3.4222]
[1727058182297,3.4216,146.13,146.05,11.49]
[1727058182298,14.98636445,146.13,146.05,11.49]
[1727058182594,14.98636445,146.13,146.01,6.8481]
[1727058182595,14.98636445,146.13,146.08,3.4224]
[1727058183293,3.4219,146.11,146.08,3.4224]
[1727058184000,3.4217,146.12,146.08,3.4224]
[1727058185200,3.4217,146.12,146.09,3.4223]
[1727058189093,3.49636445,146.13,146.08,3.4225]
[1727058189094,3.4219,146.11,146.08,3.4225]
[1727058189298,11.49,146.12,146.08,3.4225]
[1727058189494,11.49,146.12,146.03,11.49]
[1727058189694,3.4221,146.1,146.07,3.4227]
[1727058189895,11.49,146.12,146.03,11.49]
[1727058190500,3.422,146.11,146.07,3.4226]
[1727058191005,11.49,146.12,146.09,3.4223]
[1727058191006,14.9117,146.12,146.09,3.4223]
[1727058191304,4.87195924,146.13,146.05,11.49]
[1727058191504,2.816,146.14,146.13,3.4214]
[1727058191709,12.9375,146.18,146.13,3.4214]
[1727058192005,3.4208,146.16,146.13,3.4214]
[1727058192207,3.4208,146.16,146.09,11.49]
[1727058192208,3.4208,146.16,146.14,3.4212]
[1727058192404,11.49,146.18,146.14,3.4212]
[1727058192597,15.7106,146.2,146.11,11.49]
[1727058193304,4.2206,146.2,146.13,11.49]
[1727058193798,7.6406,146.2,146.16,3.4205]
[1727058198609,3.42,146.19,146.16,3.4205]
[1727058203015,6.1929,146.2,146.17,3.4203]
[1727058203216,6.18525618,146.2,146.13,11.49]
[1727058203414,17.67525618,146.2,146.11,11.49]
[1727058203608,3.4202,146.18,146.11,11.49]
[1727058203914,17.67525618,146.2,146.11,11.49]
[1727058204304,7.36,146.18,146.13,7.36]
[1727058205609,7.36,146.18,146.15,3.4207]
[1727058206216,7.36,146.18,146.16,3.4207]
[1727058206419,2.7731,146.2,146.17,7.36]
[1727058206618,1.4307,146.25,146.18,7.36]
[1727058206823,2.7045,146.24,146.19,7.36]
[1727058207118,6.1234,146.24,146.19,7.36]
[1727058207916,6.1234,146.24,146.21,3.4194]
[1727058208412,13.4834,146.24,146.21,3.4194]
[1727058208717,13.4834,146.24,146.2,3.4197]
[1727058211618,13.4834,146.24,146.2,10.7797]
[1727058212110,3.4191,146.23,146.2,10.7797]
[1727058212517,10.0645,146.24,146.2,7.36]
[1727058212518,13.4833,146.24,146.2,7.36]
[1727058213111,2.7045,146.24,146.2,7.36]
[1727058213312,3.4184,146.26,146.22,7.36]
[1727058214013,3.4184,146.26,146.23,3.4188]
[1727058217409,10.7784,146.26,146.23,3.4188]
[1727058220123,3.4186,146.25,146.23,3.4188]
[1727058223722,3.4186,146.25,146.22,3.4191]
[1727058224625,2.71,146.28,146.15,1.1535]
[1727058224920,7.36,146.24,146.17,7.36]
[1727058225228,3.4197,146.21,146.18,3.4201]
[1727058226624,7.36,146.19,146.09,1.1523]
[1727058226819,7.36,146.19,146.14,7.36]
[1727058227825,8.7441,146.21,146.16,7.36]
[1727058228226,12.20792441,146.21,146.16,7.36]
[1727058228622,3.4199,146.2,146.16,10.7805]
[1727058229519,3.42,146.19,146.15,10.7808]
[1727058229716,3.42,146.19,146.09,1.1523]
[1727058229717,7.36,146.19,146.14,7.36]
[1727058230127,3.4206,146.17,146.14,10.781]
[1727058230324,7.36,146.19,146.14,7.36]
[1727058230517,1.4021,146.2,146.14,7.36]
[1727058230720,7.36,146.19,146.14,7.36]
[1727058231629,3.4204,146.18,146.15,3.4209]
[1727058233831,7.36,146.18,146.13,3.4213]
[1727058234133,1.3203,146.19,146.07,89.44]
[1727058234429,10.7814,146.13,146.07,7.36]
[1727058236421,3.4214,146.13,146.08,7.36]
[1727058236834,7.36,146.14,146.09,3.4223]
[1727058237128,10.81929667,146.13,146.07,7.36]
[1727058237431,12.1972,146.13,146.09,3.4222]
[1727058237932,12.20055433,146.13,146.08,3.4225]
[1727058238729,3.4218,146.12,146.08,3.4225]
[1727058239326,12.20055433,146.13,146.08,3.4225]
[1727058239733,4.84055433,146.13,146.09,3.4223]
[1727058240234,7.36,146.12,146.09,3.4223]
[1727058241228,4.8372,146.13,146.1,3.4221]
[1727058241229,1.4157,146.13,146.1,3.4221]
[1727058241538,1.4157,146.13,146.09,7.36]
[1727058241738,1.4157,146.13,146.11,3.4218]
[1727058242043,1.3203,146.19,146.12,7.36]
[1727058242243,7.36,146.17,146.13,3.4214]
[1727058242445,3.4211,146.15,146.1,7.36]
[1727058242838,3.4211,146.15,146.05,3.37955792]
[1727058243044,3.4215,146.13,146.02,0.6309]
[1727058243350,7.36,146.13,146.09,7.36]
[1727058243655,7.36,146.13,146.1,3.422]
[1727058244749,7.36,146.13,146.11,3.4218]
[1727058244947,10.7813,146.14,146.11,3.4218]
[1727058246847,10.7813,146.14,146.1,3.422]
[1727058247150,10.7815,146.13,146.08,7.36]
[1727058247343,7.36,146.11,146.02,0.6309]
[1727058247550,7.36,146.11,146.05,7.36]
[1727058248147,7.36,146.11,146.07,3.4227]
[1727058248350,10.782,146.11,146.05,7.36]
[1727058248750,10.782,146.11,146.06,7.36]
[1727058249051,3.4221,146.1,146.07,3.4227]
[1727058249257,7.36,146.11,146.07,3.4227]
[1727058249553,10.782,146.11,146.07,3.4227]
[1727058250153,10.782,146.11,146.08,3.4226]
[1727058252153,7.36,146.09,146.05,7.36]
[1727058252852,7.36,146.09,146.07,3.4228]
[1727058253651,10.7823,146.1,146.07,3.4228]
[1727058254553,7.36,146.1,146.07,3.4228]
[1727058256557,7.36,146.1,146.08,3.4225]
[1727058256956,3.422,146.11,146.08,3.4225]
[1727058258744,10.782,146.11,146.08,3.4225]
[1727058258954,2.7668,146.12,146.08,7.36]
[1727058259256,1.4104,146.13,146.09,7.36]
[1727058259451,1.4104,146.13,146.1,3.422]
[1727058259650,1.4104,146.13,146.09,7.36]
[1727058260856,1.4104,146.13,146.1,7.36]
[1727058261057,7.36,146.14,146.1,7.36]
[1727058261357,3.4208,146.16,146.1,7.36]
[1727058261652,7.36,146.15,146.1,7.36]
[1727058263753,7.36,146.14,146.09,7.36]
[1727058264860,7.36,146.14,146.1,3.4219]
[1727058265153,7.36,146.12,146.07,7.36]
[1727058265356,10.782,146.11,146.06,7.36]
[1727058265968,7.36,146.11,146.06,7.36]
[1727058267961,7.36,146.11,146.09,3.4223]
[1727058269055,10.7819,146.11,146.01,7.4775]
[1727058269355,7.36,146.11,146.05,7.36]
[1727058270361,7.36,146.1,146.07,3.4226]
[1727058270561,4.1844,146.12,146.07,3.4226]
[1727058270761,7.36,146.09,146.07,3.4226]
[1727058272660,7.36,146.08,145.96,10.21592208]
[1727058272864,7.36,146.08,145.91,245.5509]
[1727058272865,7.36,146.03,145.93,0.63]
[1727058273162,4.1844,146.12,146.0,7.36]
[1727058273354,7.36,146.07,146.01,7.36]
[1727058274060,7.36,146.07,146.03,7.36]
[1727058274259,7.36,146.07,145.94,6.8514]
[1727058274454,7.36,146.07,146.02,7.36]
[1727058274763,3.4227,146.08,146.04,3.4235]
[1727058274959,4.1844,146.12,146.03,7.36]
[1727058275157,10.7824,146.09,146.03,7.36]
[1727058275351,4.1844,146.12,146.03,7.36]
[1727058275554,7.36,146.08,146.03,7.36]
[1727058275751,7.36,146.08,146.05,3.4231]